bitfinex/quotes_SOLUSD_20240625
["timestamp","ask_amount","ask_price","bid_price","bid_amount"]
[1719286640283,5.894,135.74,135.62,0.17]
[1719286640284,21.4908,135.78,135.6,35.9542]
[1719286640464,205.8909,135.81,135.73,5.8937]
[1719286640780,205.8909,135.81,135.72,5.8943]
[1719286640781,200.0,135.81,135.72,5.8943]
[1719286641152,5.8917,135.79,135.72,20.6296]
[1719286641347,5.8918,135.78,135.71,11.982]
[1719286641752,5.8923,135.77,135.71,6.0872]
[1719286642065,200.0,135.79,135.71,20.8234]
[1719286642263,100.0,135.79,135.71,20.8234]
[1719286642455,5.8913,135.8,135.72,5.894]
[1719286642656,5.8918,135.79,135.71,26.719]
[1719286642870,105.891,135.8,135.73,5.894]
[1719286643069,105.891,135.8,135.71,20.8242]
[1719286644184,8.80584132,135.81,135.71,35.5609]
[1719286644359,100.7369649,135.82,135.76,5.8927]
[1719286644680,0.7369649,135.82,135.8,5.8906]
[1719286644866,0.7369649,135.82,135.81,5.8905]
[1719286645775,0.7369649,135.82,135.79,20.619]
[1719286645976,0.7369649,135.82,135.78,5.8918]
[1719286646177,0.7369649,135.82,135.76,20.6238]
[1719286646483,0.7369649,135.82,135.76,14.7315]
[1719286646856,0.7369649,135.82,135.78,5.8917]
[1719286647060,0.7369649,135.82,135.76,20.6241]
[1719286647385,0.7369649,135.82,135.77,5.8922]
[1719286647565,0.7369649,135.82,135.78,14.7291]
[1719286647887,0.7369649,135.82,135.8,5.8907]
[1719286648097,5.8908,135.81,135.74,14.7334]
[1719286648387,5.8908,135.81,135.71,35.5609]
[1719286648388,100.0,135.81,135.71,35.5609]
[1719286648557,0.7369649,135.82,135.81,5.8905]
[1719286648753,0.7369649,135.82,135.75,29.4656]
[1719286649474,0.7369649,135.82,135.77,5.8921]
[1719286649672,5.8909,135.81,135.73,5.8939]
[1719286649877,0.7369649,135.82,135.73,5.8939]
[1719286650180,100.7369649,135.82,135.71,35.5609]
[1719286650388,110.40947289,135.82,135.74,14.7331]
[1719286650875,9.67250799,135.81,135.72,5.8944]
[1719286651062,5.8911,135.8,135.71,20.8243]
[1719286651272,5.8911,135.8,135.72,5.8941]
[1719286651783,5.8916,135.79,135.71,26.7191]
[1719286651978,5.8916,135.79,135.72,5.8944]
[1719286652178,5.8917,135.79,135.71,6.0872]
[1719286652381,5.8913,135.8,135.72,5.8944]
[1719286652985,105.8913,135.8,135.72,5.8944]
[1719286653159,5.8913,135.8,135.72,5.8944]
[1719286653360,5.8911,135.8,135.72,20.6296]
[1719286653562,9.67250799,135.81,135.71,6.0872]
[1719286653867,100.0,135.8,135.7,14.7374]
[1719286654063,5.8915,135.79,135.72,5.8943]
[1719286654696,24.39890799,135.81,135.7,14.7374]
[1719286654903,5.8918,135.79,135.72,5.8941]
[1719286655080,5.8914,135.79,135.72,5.8941]
[1719286655393,5.8906,135.81,135.74,5.8936]
[1719286655606,5.8916,135.79,135.72,20.6297]
[1719286656068,5.8911,135.8,135.72,20.6297]
[1719286656271,7.4034649,135.82,135.74,5.8934]
[1719286656608,13.2936649,135.82,135.75,5.8931]
[1719286656777,13.2936649,135.82,135.73,5.8938]
[1719286656778,5.8913,135.8,135.73,5.8938]
[1719286656975,100.0,135.8,135.72,14.7356]
[1719286657173,100.0,135.8,135.69,16.5576]
[1719286657508,7.4034649,135.82,135.71,14.7367]
[1719286657672,0.7369649,135.82,135.75,14.7325]
[1719286659295,0.7369649,135.82,135.72,14.7358]
[1719286659882,5.8905,135.81,135.74,5.8936]
[1719286660088,0.7369649,135.82,135.73,5.8939]
[1719286660089,5.891,135.8,135.73,5.8939]
[1719286660579,5.8915,135.79,135.72,20.6301]
[1719286660979,100.0,135.81,135.72,14.7358]
[1719286661179,0.7369649,135.82,135.72,14.7358]
[1719286661497,5.891,135.8,135.73,5.8939]
[1719286661690,0.7369649,135.82,135.72,14.7358]
[1719286661879,5.8906,135.81,135.74,5.8935]
[1719286662085,6.6271649,135.82,135.75,5.8931]
[1719286662281,0.7369649,135.82,135.78,14.729]
[1719286662600,0.7369649,135.82,135.8,5.8909]
[1719286663091,0.7369649,135.82,135.75,14.7326]
[1719286663299,100.0,135.81,135.72,14.7359]
[1719286663502,23.1194649,135.82,135.7,29.475]
[1719286663680,123.1194649,135.82,135.7,29.475]
[1719286663881,129.0099649,135.82,135.75,5.8929]
[1719286664788,5.8905,135.81,135.74,5.8935]
[1719286665296,5.892,135.78,135.71,5.8946]
[1719286665478,5.891,135.8,135.73,5.894]
[1719286666192,105.8916,135.79,135.72,14.7355]
[1719286666380,5.891,135.8,135.72,14.7355]
[1719286666574,100.0,135.79,135.72,14.7355]
[1719286666795,200.0,135.79,135.7,5.8949]
[1719286666975,105.8917,135.79,135.71,5.8945]
[1719286667176,105.8917,135.79,135.72,5.8943]
[1719286667583,105.8914,135.79,135.72,5.8943]
[1719286668288,100.0,135.79,135.74,5.8934]
[1719286669079,100.0,135.79,135.73,14.7344]
[1719286669279,100.0,135.79,135.7,14.7377]
[1719286669493,5.8919,135.78,135.71,5.8945]
[1719286669805,100.0,135.79,135.72,5.8942]
[1719286669977,9.67250799,135.8,135.73,14.735]
[1719286670177,115.56380799,135.8,135.73,20.6289]
[1719286670594,100.0,135.78,135.7,14.7379]
[1719286670995,105.8922,135.78,135.71,5.8948]
[1719286671198,100.0,135.78,135.7,14.7379]
[1719286671384,100.0,135.78,135.72,5.8942]
[1719286671699,100.0,135.78,135.73,5.8938]
[1719286671920,100.0,135.78,135.72,20.63]
[1719286672497,9.67250799,135.8,135.72,14.7356]
[1719286672801,105.8918,135.79,135.72,20.6297]
[1719286672990,100.0,135.79,135.73,5.8939]
[1719286673306,15.56360799,135.8,135.73,5.8939]
[1719286673604,105.8916,135.79,135.72,20.6297]
[1719286673903,100.0,135.77,135.73,5.8939]
[1719286674202,100.0,135.77,135.72,20.63]
[1719286675103,105.8926,135.77,135.7,5.8953]
[1719286675305,200.0,135.77,135.71,5.8949]
[1719286675679,100.0,135.77,135.71,5.8949]
[1719286676411,100.0,135.77,135.72,20.6304]
[1719286676708,100.0,135.79,135.74,20.6265]
[1719286676896,100.0,135.79,135.74,14.7332]
[1719286677416,100.0,135.79,135.74,20.6267]
[1719286677582,100.0,135.77,135.74,14.7332]
[1719286678693,100.0,135.77,135.73,5.8939]
[1719286679426,100.0,135.77,135.71,20.6309]
[1719286679704,100.0,135.77,135.72,5.8943]
[1719286679908,100.0,135.77,135.71,14.7365]
[1719286680207,100.0,135.77,135.71,20.6313]
[1719286680506,100.0,135.77,135.72,5.8943]
[1719286680799,100.0,135.77,135.71,14.7365]
[1719286681006,100.0,135.74,135.61,1.705813]
[1719286681186,100.0,135.74,135.66,14.7422]
[1719286681502,100.0,135.74,135.68,5.8961]
[1719286681707,200.0,135.74,135.68,5.8961]
[1719286681902,100.0,135.74,135.68,14.7399]
[1719286682204,100.0,135.74,135.69,5.8957]
[1719286682584,100.0,135.75,135.65,6.6605]
[1719286682783,100.0,135.75,135.7,14.7376]
[1719286682988,100.0,135.75,135.67,14.7413]
[1719286683183,100.0,135.74,135.67,14.7413]
[1719286683384,105.8937,135.74,135.67,20.6378]
[1719286683591,100.0,135.72,135.67,14.7413]
[1719286683803,100.0,135.72,135.67,20.6379]
[1719286683985,100.0,135.74,135.68,5.8961]
[1719286684382,5.22757344,135.78,135.73,58.9404]
[1719286684588,5.22757344,135.78,135.69,96.62931712]
[1719286684589,100.0,136.1,136.09,5.8784]
[1719286684788,5.91419784,136.28,136.17,24.2917838]
[1719286684999,5.91419784,136.28,136.09,163.68978552]
[1719286685000,100.0,136.21,136.18,19.03535981]
[1719286685204,0.880316,136.23,136.22,20.5549]
[1719286685405,100.0,136.23,136.18,14.20993398]
[1719286685599,100.0,136.23,136.09,71.9954255]
[1719286685600,5.39897708,136.23,136.15,27.39]
[1719286685804,100.0,136.27,136.19,27.39]
[1719286685991,200.0,136.27,136.19,27.39]
[1719286686191,26.66973417,136.27,136.16,27.39]
[1719286686496,0.04369784,136.28,136.2,45.0]
[1719286686704,0.04369784,136.28,136.14,0.17]
[1719286686948,0.04369784,136.28,136.26,5.8711]
[1719286687704,0.04369784,136.28,136.27,27.39]
[1719286688114,9.784e-05,136.28,136.27,27.39]
[1719286688317,9.784e-05,136.28,136.26,62.6146]
[1719286688611,9.784e-05,136.28,136.26,35.2246]
[1719286689013,100.0,136.35,136.34,5.8676]
[1719286689912,100.0,136.31,136.26,29.3535]
[1719286690621,100.0,136.33,136.26,29.3535]
[1719286690821,100.0,136.31,136.3,20.5429]
[1719286691117,100.0,136.33,136.31,5.8686]
[1719286693011,100.880316,136.37,136.36,5.8668]
[1719286694131,0.880316,136.37,136.36,5.8668]
[1719286694413,0.880316,136.37,136.36,37.5668]
[1719286695016,1.9460378,136.42,136.36,76.7]
[1719286695319,1.9460378,136.42,136.37,45.0]
[1719286695621,1.9460378,136.42,136.36,31.7]
[1719286697721,1.9460378,136.42,136.37,45.0]
[1719286697918,1.9460378,136.42,136.36,31.7]
[1719286698101,1.9460378,136.42,136.37,45.0]
[1719286698498,1.9460378,136.42,136.31,29.3438]
[1719286698702,1.9460378,136.42,136.37,31.7]
[1719286699009,1.9460378,136.42,136.41,31.7]
[1719286699318,1.9460378,136.42,136.36,31.7]
[1719286699520,1.9460378,136.42,136.41,31.7]
[1719286700321,106.87431601,136.5,136.41,31.7]
[1719286700531,100.0,136.49,136.41,31.7]
[1719286700710,100.0,136.49,136.36,31.7]
[1719286700914,100.0,136.49,136.4,31.7]
[1719286701315,100.0,136.47,136.36,31.7]
[1719286701827,100.0,136.45,136.36,31.7]
[1719286702024,100.0,136.47,136.36,31.679991]
[1719286702226,100.0,136.47,136.33,6.0591]
[1719286702428,100.0,136.48,136.36,31.7]
[1719286702615,100.0,136.48,136.4,31.7]
[1719286702942,100.0,136.45,136.36,31.7]
[1719286704143,100.0,136.48,136.36,31.7]
[1719286704331,100.0,136.48,136.31,29.3438]
[1719286704332,100.0,136.46,136.31,29.3438]
[1719286704511,100.0,136.44,136.35,31.7]
[1719286705014,100.0,136.46,136.35,31.7]
[1719286707016,100.0,136.48,136.35,31.7]
[1719286707624,100.0,136.46,136.35,31.7]
[1719286708216,100.0,136.46,136.36,45.0]
[1719286708610,100.0,136.46,136.35,31.7]
[1719286710343,100.0,136.44,136.35,31.7]
[1719286710519,100.0,136.46,136.35,31.7]
[1719286710835,100.0,136.44,136.35,31.7]
[1719286711018,100.0,136.46,136.35,31.7]
[1719286711224,100.0,136.48,136.39,31.7]
[1719286711620,100.0,136.44,136.36,31.7]
[1719286711811,100.0,136.47,136.36,31.7]
[1719286711812,100.0,136.46,136.36,31.7]
[1719286712217,100.0,136.48,136.36,31.7]
[1719286712426,100.0,136.48,136.37,45.0]
[1719286712718,100.0,136.48,136.4,31.7]
[1719286714308,106.87431601,136.5,136.4,31.7]
[1719286714544,106.87431601,136.5,136.44,31.7]
[1719286714830,100.0,136.48,136.44,31.7]
[1719286715030,106.87431601,136.5,136.44,31.7]
[1719286715345,6.87431601,136.5,136.44,31.7]
[1719286715836,100.0,136.58,136.49,38.218]
[1719286716014,100.0,136.58,136.54,31.7]
[1719286716221,100.0,136.56,136.54,31.7]
[1719286716415,100.0,136.58,136.54,31.7]
[1719286716618,5.19537835,136.63,136.48,31.7]
[1719286716619,100.0,136.55,136.48,31.7]
[1719286716837,100.0,136.57,136.48,31.7]
[1719286717136,100.0,136.53,136.48,31.7]
[1719286717528,100.0,136.55,136.48,31.7]
[1719286718124,100.0,136.52,136.47,31.7]
[1719286718338,100.0,136.52,136.43,38.218]
[1719286718518,100.0,136.54,136.43,38.218]
[1719286718835,100.0,136.54,136.43,69.918]
[1719286719646,100.0,136.52,136.47,31.7]
[1719286720643,100.0,136.54,136.47,31.7]
[1719286720820,100.0,136.52,136.47,31.7]
[1719286721016,100.0,136.56,136.43,6.518]
[1719286721213,100.0,136.51,136.46,31.7]
[1719286721420,100.0,136.51,136.43,31.7]
[1719286721721,100.0,136.52,136.4,31.7]
[1719286721922,100.0,136.5,136.44,31.7]
[1719286722328,100.0,136.48,136.44,31.7]
[1719286722531,100.0,136.46,136.4,31.7]
[1719286723336,100.0,136.43,136.36,31.7]
[1719286723539,100.0,136.41,136.36,31.7]
[1719286723747,100.0,136.39,136.3,169.25500845]
[1719286724328,100.0,136.37,136.3,169.25500845]
[1719286724659,100.0,136.39,136.3,169.25500845]
[1719286725157,100.0,136.38,136.3,169.25500845]
[1719286725944,122.13,136.44,136.3,169.25500845]
[1719286725945,100.0,136.43,136.33,31.7]
[1719286726152,100.0,136.44,136.33,31.7]
[1719286726345,100.0,136.42,136.33,31.7]
[1719286726756,100.0,136.44,136.33,31.7]
[1719286726968,100.0,136.4,136.33,31.7]
[1719286727258,100.0,136.4,136.3,169.25500845]
[1719286727625,100.0,136.38,136.3,169.25500845]
[1719286729154,100.0,136.36,136.3,169.25500845]
[1719286729660,100.0,136.34,136.3,169.25500845]
[1719286729860,100.0,136.36,136.3,169.25500845]
[1719286729861,100.0,136.31,136.3,169.25500845]
[1719286730244,100.0,136.33,136.3,169.25500845]
[1719286731256,100.0,136.31,136.3,169.25500845]
[1719286731438,100.0,136.29,136.2,169.37927792]
[1719286731643,100.0,136.32,136.2,169.37927792]
[1719286731942,100.0,136.36,136.22,78.83]
[1719286732136,100.0,136.36,136.29,31.7]
[1719286732365,100.0,136.38,136.29,31.7]
[1719286732743,100.0,136.36,136.29,31.7]
[1719286733450,100.0,136.34,136.22,31.7]
[1719286734576,100.0,136.32,136.22,31.7]
[1719286737474,200.0,136.37,136.22,31.7]
[1719286737660,100.0,136.37,136.26,31.7]
[1719286738360,100.0,136.37,136.27,45.0]
[1719286739876,100.0,136.37,136.26,31.7]
[1719286740192,100.0,136.33,136.2,201.07927792]
[1719286741045,100.0,136.33,136.2,223.20927792]
[1719286741242,100.0,136.37,136.24,31.7]
[1719286741885,100.0,136.37,136.24,53.83]
[1719286742179,100.0,136.37,136.26,16.2563]
[1719286743150,100.0,136.35,136.26,16.2563]
[1719286743687,100.0,136.29,136.21,169.36684276]
[1719286743877,100.0,136.3,136.14,31.7]
[1719286744055,200.0,136.28,136.14,31.7]
[1719286744262,200.0,136.28,136.2,21.76414065]
[1719286744456,211.50548705,136.28,136.2,21.76414065]
[1719286744854,11.50548705,136.28,136.2,21.76414065]
[1719286745054,100.0,136.31,136.22,53.46414065]
[1719286745473,100.0,136.31,136.22,31.7]
[1719286746466,100.0,136.3,136.22,53.46414065]
[1719286746780,100.0,136.31,136.22,53.46414065]
[1719286747030,100.0,136.3,136.22,53.46414065]
[1719286747192,100.0,136.29,136.21,44.26624065]
[1719286747554,100.0,136.29,136.21,22.5021]
[1719286748668,10.41707235,136.37,136.21,22.5021]
[1719286748669,100.0,136.31,136.21,22.5021]
[1719286748868,100.0,136.4,136.27,31.7]
[1719286749061,100.0,136.38,136.27,31.7]
[1719286749263,100.0,136.38,136.28,45.0]
[1719286749467,200.0,136.4,136.28,45.0]
[1719286749889,100.0,136.38,136.28,45.0]
[1719286750090,100.0,136.36,136.22,53.83]
[1719286750386,100.0,136.34,136.22,53.43461697]
[1719286750977,100.0,136.34,136.22,31.7]
[1719286751177,100.0,136.36,136.22,53.83]
[1719286751375,100.0,136.39,136.23,41.73461697]
[1719286751573,100.0,136.37,136.26,31.7]
[1719286752000,100.0,136.33,136.26,31.7]
[1719286752482,100.0,136.31,136.22,31.7]
[1719286752694,100.0,136.32,136.22,31.7]
[1719286752879,100.0,136.3,136.21,44.23671697]
[1719286753186,100.0,136.3,136.21,22.5021]
[1719286753393,200.0,136.32,136.21,22.5021]
[1719286753593,200.0,136.3,136.21,22.5021]
[1719286753977,100.0,136.28,136.21,22.5021]
[1719286754999,200.0,136.3,136.21,22.5021]
[1719286755297,100.0,136.28,136.21,22.5021]
[1719286755476,100.0,136.28,136.19,21.73461697]
[1719286756301,100.0,136.31,136.19,21.73461697]
[1719286756599,100.0,136.31,136.16,53.1776]
[1719286756782,100.0,136.31,136.16,28.1776]
[1719286757191,100.0,136.29,136.17,45.0]
[1719286757810,100.0,136.32,136.17,45.0]
[1719286758217,100.0,136.31,136.17,67.13]
[1719286759691,100.0,136.29,136.16,6.0476]
[1719286759876,100.0,136.27,136.16,6.0476]
[1719286760783,100.0,136.25,136.16,6.0476]
[1719286762100,200.0,136.23,136.11,6.142]
[1719286763411,100.0,136.21,136.11,6.142]
[1719286763618,200.0,136.25,136.12,31.7]
[1719286763791,200.0,136.27,136.12,31.7]
[1719286763983,200.0,136.27,136.12,53.83]
[1719286764188,100.0,136.25,136.12,53.83]
[1719286764416,100.0,136.25,136.12,31.7]
[1719286764802,100.0,136.25,136.13,45.0]
[1719286765497,100.0,136.23,136.12,31.7]
[1719286766090,100.0,136.23,136.11,6.142]
[1719286767285,100.0,136.24,136.11,6.142]
[1719286767487,100.0,136.25,136.13,31.7]
[1719286768196,100.0,136.25,136.14,45.0]
[1719286769198,100.0,136.27,136.17,31.7]
[1719286769401,100.0,136.25,136.16,31.7]
[1719286769810,100.0,136.25,136.17,45.0]
[1719286770016,100.0,136.25,136.16,31.7]
[1719286770584,100.0,136.25,136.17,31.72]
[1719286771309,200.0,136.27,136.17,31.72]
[1719286771808,200.0,136.27,136.12,22.13]
[1719286772018,200.0,136.27,136.17,31.72]
[1719286772309,200.0,136.29,136.18,45.0]
[1719286773206,100.0,136.27,136.18,45.0]
[1719286773409,100.0,136.27,135.97,44.09]
[1719286773717,100.0,136.27,136.19,31.72]
[1719286774310,100.0,136.27,136.15,31.72]
[1719286774511,200.0,136.27,136.16,45.0]
[1719286775019,100.0,136.25,136.15,63.44]
[1719286775196,100.0,136.25,136.15,31.72]
[1719286775998,100.0,136.27,136.15,31.72]
[1719286776188,200.0,136.3,136.2,31.72]
[1719286776805,100.0,136.28,136.2,31.72]
[1719286777003,200.0,136.3,136.2,31.72]
[1719286777695,200.0,136.28,136.2,31.72]
[1719286778200,200.0,136.28,136.15,31.72]
[1719286778404,100.0,136.28,136.16,45.0]
[1719286778812,200.0,136.28,136.16,45.0]
[1719286779305,100.0,136.28,136.16,45.0]
[1719286779716,100.0,136.28,136.2,31.72]
[1719286780597,200.0,136.3,136.2,31.72]
[1719286780906,100.0,136.28,136.2,38.2725]
[1719286781105,100.0,136.3,136.2,38.2725]
[1719286781314,100.0,136.28,136.2,38.2725]
[1719286781494,10.28211632,136.34,136.2,38.2725]
[1719286781495,100.0,136.3,136.2,6.5525]
[1719286781695,200.0,136.3,136.2,6.5525]
[1719286782100,200.0,136.3,136.2,38.2725]
[1719286783516,100.0,136.26,136.2,38.2725]
[1719286783726,100.0,136.26,136.19,16.1402]
[1719286783912,100.0,136.26,136.2,31.72]
[1719286784112,100.0,136.26,136.17,6.5089]
[1719286784801,100.0,136.26,136.19,31.72]
[1719286786128,100.0,136.26,136.23,31.72]
[1719286786330,200.0,136.3,136.23,31.72]
[1719286786497,100.0,136.3,136.23,31.72]
[1719286786694,100.0,136.3,136.27,31.72]
[1719286786920,100.0,136.3,136.22,31.72]
[1719286788927,200.0,136.3,136.22,31.72]
[1719286789224,100.0,136.28,136.22,31.72]
[1719286789725,100.0,136.26,136.17,6.5089]
[1719286789911,100.0,136.3,136.21,31.72]
[1719286790121,100.0,136.33,136.25,31.72]
[1719286790318,100.0,136.32,136.25,31.72]
[1719286790713,100.0,136.31,136.25,31.72]
[1719286791407,100.0,136.3,136.25,31.72]
[1719286791616,100.0,136.31,136.25,31.72]
[1719286792115,100.0,136.32,136.25,31.72]
[1719286794428,100.0,136.3,136.25,31.72]
[1719286794634,100.0,136.3,136.22,31.72]
[1719286795125,100.0,136.29,136.22,31.72]
[1719286795335,100.0,136.28,136.22,31.72]
[1719286797129,100.0,136.3,136.22,31.72]
[1719286797333,200.0,136.3,136.22,31.72]
[1719286797631,100.0,136.28,136.22,31.72]
[1719286797837,100.0,136.26,136.22,31.72]
[1719286798327,200.0,136.26,136.17,6.5089]
[1719286798632,100.0,136.26,136.19,31.72]
[1719286798931,200.0,136.28,136.19,31.72]
[1719286799430,200.0,136.26,136.19,31.72]
[1719286800124,100.0,136.26,136.19,31.72]
[1719286800328,200.0,136.26,136.19,31.72]
[1719286800525,200.0,136.28,136.19,31.72]
[1719286800714,200.0,136.3,136.19,31.72]
[1719286800914,100.0,136.32,136.23,31.72]
[1719286801425,100.0,136.31,136.23,31.72]
[1719286801726,200.0,136.32,136.23,31.72]
[1719286801932,200.0,136.3,136.23,31.72]
[1719286803131,100.0,136.28,136.2,31.72]
[1719286803432,200.0,136.3,136.2,31.72]
[1719286803910,100.0,136.3,136.2,31.72]
[1719286804720,200.0,136.3,136.2,31.72]
[1719286804918,200.0,136.3,136.21,45.0]
[1719286806339,100.0,136.3,136.24,31.72]
[1719286806511,100.0,136.35,136.24,31.72]
[1719286806825,100.0,136.31,136.23,15.4643]
[1719286807137,100.0,136.29,136.23,47.1843]
[1719286807535,100.0,136.29,136.23,31.72]
[1719286808119,100.0,136.3,136.23,31.72]
[1719286809641,200.0,136.3,136.23,31.72]
[1719286810334,100.0,136.28,136.23,31.72]
[1719286810721,100.0,136.28,136.25,27.18]
[1719286810923,200.0,136.3,136.25,27.18]
[1719286811834,100.0,136.28,136.25,27.18]
[1719286812134,200.0,136.3,136.25,27.18]
[1719286812337,100.0,136.28,136.21,6.2933]
[1719286812538,200.0,136.3,136.24,27.18]
[1719286812723,100.0,136.28,136.24,27.18]
[1719286813347,200.0,136.3,136.24,27.18]
[1719286815135,200.0,136.3,136.21,6.2933]
[1719286815321,200.0,136.3,136.24,27.18]
[1719286816239,200.0,136.3,136.28,27.18]
[1719286816435,200.0,136.32,136.28,27.18]
[1719286816633,100.0,136.32,136.3,27.18]
[1719286816851,200.0,136.32,136.31,27.18]
[1719286817027,200.0,136.32,136.28,27.18]
[1719286818144,100.0,136.32,136.28,27.18]
[1719286819047,100.0,136.3,136.21,6.2933]
[1719286819262,100.0,136.29,136.25,27.18]
[1719286819824,100.0,136.3,136.25,27.18]
[1719286820049,200.0,136.3,136.25,27.18]
[1719286820232,100.0,136.3,136.25,27.18]
[1719286820550,100.0,136.34,136.29,27.18]
[1719286822842,6.4974,136.42,136.32,27.18]
[1719286822843,200.0,136.4,136.32,27.18]
[1719286823029,100.0,136.4,136.36,27.18]
[1719286823230,100.0,136.39,136.36,27.18]
[1719286826057,200.0,136.39,136.36,27.18]
[1719286826245,200.0,136.37,136.34,27.18]
[1719286826451,100.0,136.37,136.34,27.18]
[1719286826631,200.0,136.37,136.34,27.18]
[1719286826831,100.0,136.37,136.34,27.18]
[1719286827249,100.0,136.39,136.34,27.18]
[1719286827835,100.0,136.39,136.37,27.18]
[1719286828743,100.0,136.42,136.37,27.18]
[1719286828958,200.0,136.45,136.41,27.18]
[1719286830235,200.0,136.47,136.41,27.18]
[1719286830639,200.0,136.47,136.44,27.18]
[1719286831666,200.0,136.49,136.44,27.18]
[1719286831855,100.0,136.49,136.48,27.18]
[1719286832962,100.0,136.49,136.45,27.18]
[1719286833172,200.0,136.49,136.45,27.18]
[1719286833731,100.0,136.47,136.42,27.18]
[1719286833968,200.0,136.44,136.35,22.0819]
[1719286834148,200.0,136.44,136.4,27.18]
[1719286835834,29.33807314,136.53,136.31,22.6435]
[1719286835835,100.0,136.39,136.31,22.6435]
[1719286836033,100.0,136.39,136.33,27.18]
[1719286836233,100.0,136.41,136.33,27.18]
[1719286836471,100.0,136.39,136.33,27.18]
[1719286836645,100.0,136.39,136.31,54.2935]
[1719286836968,100.0,136.37,136.31,54.2935]
[1719286837154,200.0,136.4,136.31,54.2935]
[1719286837472,100.0,136.38,136.31,54.2935]
[1719286839264,200.0,136.42,136.31,54.2935]
[1719286839472,200.0,136.46,136.32,45.0]
[1719286839649,200.0,136.46,136.35,31.65]
[1719286840147,100.0,136.42,136.32,45.0]
[1719286840363,100.0,136.42,136.32,31.65]
[1719286840562,100.0,136.43,136.32,31.65]
[1719286841271,200.0,136.41,136.32,31.65]
[1719286841450,100.0,136.41,136.32,31.65]
[1719286841656,200.0,136.43,136.32,31.65]
[1719286841843,100.0,136.41,136.32,31.65]
[1719286843271,100.0,136.43,136.32,31.65]
[1719286844775,100.0,136.46,136.36,31.65]
[1719286845073,100.0,136.48,136.39,15.2926]
[1719286845375,100.0,136.48,136.4,31.65]
[1719286845746,100.0,136.46,136.4,31.65]
[1719286846075,100.0,136.46,136.39,15.2926]
[1719286846251,100.0,136.45,136.39,15.2926]
[1719286846779,100.0,136.47,136.39,15.2926]
[1719286846947,200.0,136.47,136.39,15.2926]
[1719286847147,100.0,136.47,136.39,15.2926]
[1719286847465,200.0,136.47,136.39,15.2926]
[1719286847771,100.0,136.42,136.38,6.5136]
[1719286848354,100.0,136.44,136.38,6.5136]
[1719286849152,100.0,136.42,136.38,6.5136]